[Event "*** Titled Tuesday Blitz"]
[Site "Chess.com"]
[Date "2020.11.03"]
[Round "2"]
[White "mr_gustavo"]
[Black "Roza_Idrisova"]
[Result "1-0"]
[WhiteElo "2413"]
[BlackElo "2177"]
[TimeControl "180+1"]
[EndTime "10:16:58 PST"]
[Termination "mr_gustavo won by resignation"]

1. e4 {[%clk 0:03:00.9]} 1... c6 {[%clk 0:02:59.6]} 2. d4 {[%clk 0:02:59]} 2...
d5 {[%clk 0:03:00]} 3. e5 {[%clk 0:02:58.8]} 3... c5 {[%clk 0:02:59.5]} 4. dxc5
{[%clk 0:02:59]} 4... e6 {[%clk 0:02:58.8]} 5. Be3 {[%clk 0:02:59.1]} 5... Qc7
{[%clk 0:02:57.5]} 6. f4 {[%clk 0:02:58]} 6... Ne7 {[%clk 0:02:56.4]} 7. Nf3
{[%clk 0:02:56.1]} 7... Nf5 {[%clk 0:02:56.5]} 8. Bf2 {[%clk 0:02:56.4]} 8...
Bxc5 {[%clk 0:02:56.3]} 9. Bxc5 {[%clk 0:02:55.1]} 9... Qxc5 {[%clk 0:02:55.9]}
10. Qd2 {[%clk 0:02:55.2]} 10... Qe3+ {[%clk 0:02:51.5]} 11. Qxe3 {[%clk
0:02:54.9]} 11... Nxe3 {[%clk 0:02:51.5]} 12. Kd2 {[%clk 0:02:54.8]} 12... Nxf1+
{[%clk 0:02:50.4]} 13. Rxf1 {[%clk 0:02:55.7]} 13... Nc6 {[%clk 0:02:50.7]} 14.
Nc3 {[%clk 0:02:52.3]} 14... a6 {[%clk 0:02:47.9]} 15. Ne2 {[%clk 0:02:50.9]}
15... Ke7 {[%clk 0:02:47.7]} 16. Ned4 {[%clk 0:02:50.8]} 16... Bd7 {[%clk
0:02:47.5]} 17. c3 {[%clk 0:02:50.7]} 17... Rhc8 {[%clk 0:02:40.4]} 18. Ke3
{[%clk 0:02:49.7]} 18... Na5 {[%clk 0:02:39.9]} 19. Nd2 {[%clk 0:02:44.8]} 19...
Bb5 {[%clk 0:02:39.3]} 20. Rfc1 {[%clk 0:02:40.4]} 20... g6 {[%clk 0:02:38.4]}
21. b4 {[%clk 0:02:39.6]} 21... Nc4+ {[%clk 0:02:33.8]} 22. Nxc4 {[%clk
0:02:39.4]} 22... Bxc4 {[%clk 0:02:34]} 23. a4 {[%clk 0:02:38.4]} 23... b6
{[%clk 0:02:33.9]} 24. a5 {[%clk 0:02:38]} 24... b5 {[%clk 0:02:32.7]} 25. g4
{[%clk 0:02:37.1]} 25... Rh8 {[%clk 0:02:30]} 26. Rh1 {[%clk 0:02:23.7]} 26...
h5 {[%clk 0:02:29.9]} 27. h3 {[%clk 0:02:23.9]} 27... Rh7 {[%clk 0:02:26.6]} 28.
f5 {[%clk 0:02:02.9]} 28... hxg4 {[%clk 0:02:21.5]} 29. hxg4 {[%clk 0:02:01.8]}
29... Rah8 {[%clk 0:02:20.9]} 30. f6+ {[%clk 0:01:56.1]} 30... Kd7 {[%clk
0:02:17.7]} 31. Rxh7 {[%clk 0:01:51.6]} 31... Rxh7 {[%clk 0:02:17.2]} 32. Nf3
{[%clk 0:01:49.2]} 32... Rh3 {[%clk 0:02:13.7]} 33. Kf4 {[%clk 0:01:41.4]} 33...
Bd3 {[%clk 0:02:00.4]} 34. Ng5 {[%clk 0:01:39.3]} 34... Rh2 {[%clk 0:01:55]} 35.
Nxf7 {[%clk 0:01:39.1]} 35... Be2 {[%clk 0:01:53.2]} 36. Nd6 {[%clk 0:01:33.5]}
36... Rg2 {[%clk 0:01:37.7]} 37. Kg5 {[%clk 0:01:33.9]} 37... Rxg4+ {[%clk
0:01:36.1]} 38. Kh6 {[%clk 0:01:34.2]} 38... Bd3 {[%clk 0:01:28.9]} 39. Kg7
{[%clk 0:01:30.3]} 39... g5 {[%clk 0:01:17.9]} 40. f7 {[%clk 0:01:29.7]} 1-0

[Event "*** Titled Tuesday Blitz"]
[Site "Chess.com"]
[Date "2020.11.03"]
[Round "2"]
[White "smshk35"]
[Black "beautroll"]
[Result "0-1"]
[WhiteElo "2447"]
[BlackElo "2357"]
[TimeControl "180+1"]
[EndTime "10:17:00 PST"]
[Termination "beautroll won by resignation"]

1. e4 {[%clk 0:03:00.9]} 1... c5 {[%clk 0:03:00]} 2. Nf3 {[%clk 0:03:00.9]} 2...
d6 {[%clk 0:03:00.4]} 3. d4 {[%clk 0:03:01]} 3... cxd4 {[%clk 0:03:00.9]} 4.
Nxd4 {[%clk 0:03:01.9]} 4... Nf6 {[%clk 0:02:59.1]} 5. Nc3 {[%clk 0:03:01.8]}
5... a6 {[%clk 0:02:59.6]} 6. Bg5 {[%clk 0:03:01.3]} 6... e6 {[%clk 0:02:59.9]}
7. f4 {[%clk 0:02:59.9]} 7... Be7 {[%clk 0:02:41]} 8. Qf3 {[%clk 0:02:58.4]}
8... Qc7 {[%clk 0:02:38.9]} 9. O-O-O {[%clk 0:02:56.8]} 9... Nbd7 {[%clk
0:02:38.8]} 10. g4 {[%clk 0:02:54.7]} 10... b5 {[%clk 0:02:32.9]} 11. Bxf6
{[%clk 0:02:52.5]} 11... Nxf6 {[%clk 0:02:33.2]} 12. g5 {[%clk 0:02:52.9]} 12...
Nd7 {[%clk 0:02:31.2]} 13. f5 {[%clk 0:02:51.9]} 13... Nc5 {[%clk 0:02:24.5]}
14. f6 {[%clk 0:02:50.4]} 14... Bf8 {[%clk 0:02:17.3]} 15. Bh3 {[%clk
0:02:45.1]} 15... g6 {[%clk 0:02:02.1]} 16. Rhe1 {[%clk 0:02:39.8]} 16... b4
{[%clk 0:02:01.6]} 17. Nd5 {[%clk 0:02:38.5]} 17... Qb7 {[%clk 0:01:39.4]} 18.
e5 {[%clk 0:02:20.5]} 18... dxe5 {[%clk 0:01:09.1]} 19. Nc7+ {[%clk 0:02:03.6]}
19... Qxc7 {[%clk 0:01:04.8]} 20. Nc6 {[%clk 0:01:54.6]} 20... Bb7 {[%clk
0:00:58.9]} 21. Bg2 {[%clk 0:01:54.1]} 21... Rc8 {[%clk 0:00:56.6]} 22. Rxe5
{[%clk 0:01:12.6]} 22... Bxc6 {[%clk 0:00:56]} 23. Qe2 {[%clk 0:01:01.5]} 23...
Bxg2 {[%clk 0:00:52.2]} 0-1

[Event "*** Titled Tuesday Blitz"]
[Site "Chess.com"]
[Date "2020.11.03"]
[Round "2"]
[White "DinaBelenkaya"]
[Black "amintabatabaei"]
[Result "0-1"]
[WhiteElo "2355"]
[BlackElo "2949"]
[TimeControl "180+1"]
[EndTime "10:17:02 PST"]
[Termination "amintabatabaei won by resignation"]

1. e4 {[%clk 0:03:00.9]} 1... e6 {[%clk 0:02:58]} 2. Qe2 {[%clk 0:02:59.9]} 2...
d5 {[%clk 0:02:58.9]} 3. exd5 {[%clk 0:02:59]} 3... Qxd5 {[%clk 0:02:59.8]} 4.
Nc3 {[%clk 0:02:59.5]} 4... Qd8 {[%clk 0:02:58.8]} 5. g3 {[%clk 0:02:56.6]} 5...
Nf6 {[%clk 0:02:58.8]} 6. Bg2 {[%clk 0:02:57.2]} 6... Be7 {[%clk 0:02:59.7]} 7.
Nf3 {[%clk 0:02:57.4]} 7... O-O {[%clk 0:03:00.3]} 8. O-O {[%clk 0:02:56.7]}
8... c5 {[%clk 0:03:01]} 9. d3 {[%clk 0:02:54.9]} 9... Nc6 {[%clk 0:03:00.2]}
10. Bf4 {[%clk 0:02:25.3]} 10... Bd7 {[%clk 0:02:55]} 11. a4 {[%clk 0:02:16.7]}
11... Rc8 {[%clk 0:02:54.8]} 12. Rfd1 {[%clk 0:02:09.9]} 12... Qb6 {[%clk
0:02:46]} 13. b3 {[%clk 0:01:50.5]} 13... Rfd8 {[%clk 0:02:42.8]} 14. Qf1 {[%clk
0:01:43.2]} 14... Nd4 {[%clk 0:02:42.5]} 15. Ra2 {[%clk 0:01:33.4]} 15... Bc6
{[%clk 0:02:40.1]} 16. Ne5 {[%clk 0:01:21.8]} 16... Bxg2 {[%clk 0:02:38.8]} 17.
Qxg2 {[%clk 0:01:17.2]} 17... Nd5 {[%clk 0:02:38.7]} 18. Nc4 {[%clk 0:01:10.5]}
18... Qa6 {[%clk 0:02:38.4]} 19. Ne4 {[%clk 0:00:57.3]} 19... Nb4 {[%clk
0:02:36.8]} 20. c3 {[%clk 0:00:54.4]} 20... Nxa2 {[%clk 0:02:36.4]} 21. cxd4
{[%clk 0:00:53.8]} 21... cxd4 {[%clk 0:02:37.3]} 22. Qh3 {[%clk 0:00:46.7]}
22... Nc3 {[%clk 0:02:31.7]} 23. Re1 {[%clk 0:00:46.4]} 23... Rd5 {[%clk
0:02:22.5]} 24. Ned2 {[%clk 0:00:09.9]} 24... Qc6 {[%clk 0:02:12.6]} 25. Qg4
{[%clk 0:00:10.1]} 25... h5 {[%clk 0:02:10.6]} 26. Qf3 {[%clk 0:00:10]} 26...
Rf5 {[%clk 0:02:03.2]} 27. Qxc6 {[%clk 0:00:08.8]} 27... Rxc6 {[%clk 0:02:04.1]}
28. h4 {[%clk 0:00:08.9]} 28... Bxh4 {[%clk 0:02:01.8]} 29. Nf3 {[%clk
0:00:09.6]} 29... Bf6 {[%clk 0:02:01.5]} 30. Bd2 {[%clk 0:00:09.2]} 30... Rxf3
{[%clk 0:02:01.3]} 31. Kg2 {[%clk 0:00:09.4]} 31... Rxd3 {[%clk 0:02:01.4]} 0-1

[Event "*** Titled Tuesday Blitz"]
[Site "Chess.com"]
[Date "2020.11.03"]
[Round "2"]
[White "glebus008"]
[Black "DenisQ"]
[Result "0-1"]
[WhiteElo "2312"]
[BlackElo "2666"]
[TimeControl "180+1"]
[EndTime "10:17:04 PST"]
[Termination "DenisQ won by checkmate"]

1. e4 {[%clk 0:02:59.8]} 1... c6 {[%clk 0:02:58.3]} 2. d4 {[%clk 0:02:57.1]}
2... d5 {[%clk 0:02:59.2]} 3. exd5 {[%clk 0:02:57.4]} 3... cxd5 {[%clk
0:02:58.4]} 4. Nf3 {[%clk 0:02:58.3]} 4... Nf6 {[%clk 0:02:56.2]} 5. Ne5 {[%clk
0:02:58.7]} 5... Nc6 {[%clk 0:02:55.2]} 6. Bb5 {[%clk 0:02:58.9]} 6... Bd7
{[%clk 0:02:54.9]} 7. Nxd7 {[%clk 0:02:59.3]} 7... Qxd7 {[%clk 0:02:55.2]} 8. c3
{[%clk 0:02:59.8]} 8... e6 {[%clk 0:02:54.8]} 9. O-O {[%clk 0:02:59.4]} 9... Bd6
{[%clk 0:02:54.7]} 10. Nd2 {[%clk 0:02:57.3]} 10... O-O {[%clk 0:02:53.8]} 11.
Nf3 {[%clk 0:02:50.1]} 11... a6 {[%clk 0:02:52.6]} 12. Bd3 {[%clk 0:02:49.2]}
12... b5 {[%clk 0:02:52.3]} 13. a3 {[%clk 0:02:42]} 13... Rab8 {[%clk
0:02:49.6]} 14. Qe2 {[%clk 0:02:42]} 14... Qc7 {[%clk 0:02:48.9]} 15. g3 {[%clk
0:02:38.8]} 15... Na5 {[%clk 0:02:44.9]} 16. Bd2 {[%clk 0:02:38.7]} 16... Nc4
{[%clk 0:02:42.5]} 17. Bg5 {[%clk 0:02:26.3]} 17... Nd7 {[%clk 0:02:39.4]} 18.
Rae1 {[%clk 0:02:24.8]} 18... a5 {[%clk 0:02:36.3]} 19. Bc1 {[%clk 0:02:24.5]}
19... Rfc8 {[%clk 0:02:29.1]} 20. h4 {[%clk 0:02:12.3]} 20... b4 {[%clk
0:02:16.1]} 21. axb4 {[%clk 0:02:11.4]} 21... axb4 {[%clk 0:02:16.2]} 22. h5
{[%clk 0:02:12]} 22... bxc3 {[%clk 0:02:14.7]} 23. bxc3 {[%clk 0:02:12.9]} 23...
h6 {[%clk 0:02:08.6]} 24. Nh2 {[%clk 0:01:59.4]} 24... Na5 {[%clk 0:01:54.6]}
25. Ng4 {[%clk 0:01:24.1]} 25... Qxc3 {[%clk 0:01:53.5]} 26. Nxh6+ {[%clk
0:01:18.5]} 26... gxh6 {[%clk 0:01:52.8]} 27. Bxh6 {[%clk 0:01:09]} 27... Qxd4
{[%clk 0:01:49.9]} 28. Qf3 {[%clk 0:00:55]} 28... Rb3 {[%clk 0:01:32.6]} 29.
Bh7+ {[%clk 0:00:52.3]} 29... Kh8 {[%clk 0:01:19.3]} 30. Qxf7 {[%clk 0:00:53.2]}
30... Rxg3+ {[%clk 0:01:18.2]} 31. Kh2 {[%clk 0:00:48]} 31... Qh4# {[%clk
0:01:17]} 0-1

[Event "*** Titled Tuesday Blitz"]
[Site "Chess.com"]
[Date "2020.11.03"]
[Round "2"]
[White "Stormeman100100"]
[Black "Chessbard1972"]
[Result "1-0"]
[WhiteElo "2524"]
[BlackElo "2307"]
[TimeControl "180+1"]
[EndTime "10:17:04 PST"]
[Termination "Stormeman100100 won by checkmate"]

1. c4 {[%clk 0:03:00.8]} 1... Nf6 {[%clk 0:02:57.9]} 2. Nc3 {[%clk 0:03:00.3]}
2... g6 {[%clk 0:02:58.1]} 3. e4 {[%clk 0:02:59.4]} 3... d6 {[%clk 0:02:58.2]}
4. d4 {[%clk 0:02:59.2]} 4... Bg7 {[%clk 0:02:58.6]} 5. h3 {[%clk 0:02:58.8]}
5... O-O {[%clk 0:02:58.9]} 6. Be3 {[%clk 0:02:59.4]} 6... Na6 {[%clk
0:02:58.8]} 7. g4 {[%clk 0:02:57.8]} 7... c5 {[%clk 0:02:58.2]} 8. d5 {[%clk
0:02:58.1]} 8... e6 {[%clk 0:02:58]} 9. Nge2 {[%clk 0:02:56.2]} 9... exd5 {[%clk
0:02:57.6]} 10. cxd5 {[%clk 0:02:56.7]} 10... Re8 {[%clk 0:02:57.7]} 11. Ng3
{[%clk 0:02:56.5]} 11... Nc7 {[%clk 0:02:51.1]} 12. a4 {[%clk 0:02:54]} 12... b6
{[%clk 0:02:50.6]} 13. g5 {[%clk 0:02:51.5]} 13... Nd7 {[%clk 0:02:48.8]} 14. h4
{[%clk 0:02:51.3]} 14... Ba6 {[%clk 0:02:43.6]} 15. Bxa6 {[%clk 0:02:50.6]}
15... Nxa6 {[%clk 0:02:42.9]} 16. h5 {[%clk 0:02:51.2]} 16... f5 {[%clk
0:02:32.4]} 17. gxf6 {[%clk 0:02:47.6]} 17... Nxf6 {[%clk 0:02:28.5]} 18. hxg6
{[%clk 0:02:47.2]} 18... hxg6 {[%clk 0:02:27.9]} 19. Qf3 {[%clk 0:02:47.4]}
19... Nb4 {[%clk 0:02:25.6]} 20. O-O-O {[%clk 0:02:44.5]} 20... a6 {[%clk
0:02:21.5]} 21. Rdg1 {[%clk 0:02:43.6]} 21... b5 {[%clk 0:02:21]} 22. Bh6 {[%clk
0:02:43.5]} 22... Ra7 {[%clk 0:02:12.7]} 23. Bxg7 {[%clk 0:02:38.3]} 23... Rxg7
{[%clk 0:02:12.2]} 24. Nge2 {[%clk 0:02:22.2]} 24... c4 {[%clk 0:02:11]} 25. Nf4
{[%clk 0:02:21.6]} 25... Nd3+ {[%clk 0:02:10.4]} 26. Nxd3 {[%clk 0:02:21.2]}
26... cxd3 {[%clk 0:02:10.6]} 27. axb5 {[%clk 0:02:17.2]} 27... axb5 {[%clk
0:02:10.1]} 28. Qxd3 {[%clk 0:02:16.6]} 28... b4 {[%clk 0:02:10.1]} 29. Nb5
{[%clk 0:02:16.1]} 29... Nxe4 {[%clk 0:02:07.7]} 30. Qd4 {[%clk 0:02:05.7]}
30... Qa5 {[%clk 0:01:59.6]} 31. Rxg6 {[%clk 0:01:18.5]} 31... Rc8+ {[%clk
0:01:46.3]} 32. Kb1 {[%clk 0:01:16.6]} 32... Nd2+ {[%clk 0:01:32.4]} 33. Qxd2
{[%clk 0:01:15.2]} 33... Rxg6 {[%clk 0:01:31.9]} 34. Qd4 {[%clk 0:01:10.2]}
34... Qxb5 {[%clk 0:01:17]} 35. Qh8+ {[%clk 0:01:08.3]} 35... Kf7 {[%clk
0:01:16.6]} 36. Rh7+ {[%clk 0:01:09.2]} 36... Rg7 {[%clk 0:01:10.7]} 37. Qxg7+
{[%clk 0:01:04.4]} 37... Ke8 {[%clk 0:01:10.4]} 38. Rh8# {[%clk 0:01:04.9]} 1-0

[Event "*** Titled Tuesday Blitz"]
[Site "Chess.com"]
[Date "2020.11.03"]
[Round "2"]
[White "MomchilPetkov"]
[Black "rududuyk"]
[Result "1-0"]
[WhiteElo "2645"]
[BlackElo "2174"]
[TimeControl "180+1"]
[EndTime "10:17:16 PST"]
[Termination "MomchilPetkov won by checkmate"]

1. d4 {[%clk 0:03:00.9]} 1... e6 {[%clk 0:03:00.1]} 2. Bf4 {[%clk 0:02:57.4]}
2... f5 {[%clk 0:02:59.3]} 3. c4 {[%clk 0:02:51.7]} 3... Nf6 {[%clk 0:02:59.5]}
4. Nc3 {[%clk 0:02:52]} 4... Bb4 {[%clk 0:02:57.9]} 5. Rc1 {[%clk 0:02:50.7]}
5... O-O {[%clk 0:02:58]} 6. e3 {[%clk 0:02:48.2]} 6... b6 {[%clk 0:02:57.3]} 7.
Nf3 {[%clk 0:02:47.1]} 7... Bb7 {[%clk 0:02:57.5]} 8. Be2 {[%clk 0:02:47.2]}
8... Ne4 {[%clk 0:02:51.8]} 9. O-O {[%clk 0:02:44.1]} 9... Bxc3 {[%clk
0:02:49.3]} 10. bxc3 {[%clk 0:02:44.6]} 10... d6 {[%clk 0:02:45.9]} 11. h3
{[%clk 0:02:39.5]} 11... Nd7 {[%clk 0:02:41.7]} 12. Bh2 {[%clk 0:02:38.3]} 12...
Qe8 {[%clk 0:02:39.4]} 13. Nd2 {[%clk 0:02:27.3]} 13... e5 {[%clk 0:02:32.7]}
14. Nxe4 {[%clk 0:02:23.9]} 14... Bxe4 {[%clk 0:02:31.6]} 15. d5 {[%clk
0:02:20.4]} 15... f4 {[%clk 0:02:27.6]} 16. exf4 {[%clk 0:02:19.4]} 16... exf4
{[%clk 0:02:26]} 17. Bg4 {[%clk 0:02:16.9]} 17... Nc5 {[%clk 0:02:18]} 18. Re1
{[%clk 0:02:10.4]} 18... Qg6 {[%clk 0:02:14.3]} 19. f3 {[%clk 0:01:20]} 19...
Bf5 {[%clk 0:02:12.1]} 20. Bxf5 {[%clk 0:01:09.1]} 20... Rxf5 {[%clk 0:02:08.1]}
21. Re7 {[%clk 0:01:07.7]} 21... Rg5 {[%clk 0:02:03.5]} 22. Qf1 {[%clk
0:01:07.2]} 22... Qf6 {[%clk 0:02:02.3]} 23. Rce1 {[%clk 0:01:04.3]} 23... Rf8
{[%clk 0:01:52.6]} 24. Rxc7 {[%clk 0:01:00.2]} 24... Qxc3 {[%clk 0:01:52.4]} 25.
Ree7 {[%clk 0:00:57.1]} 25... Nd3 {[%clk 0:01:47.6]} 26. Kh1 {[%clk 0:00:50]}
26... Qd4 {[%clk 0:01:46.4]} 27. Bg1 {[%clk 0:00:48.8]} 27... Qc3 {[%clk
0:01:39.3]} 28. Qe2 {[%clk 0:00:49.1]} 28... Ne1 {[%clk 0:01:37.2]} 29. Qxe1
{[%clk 0:00:45.8]} 29... Qb2 {[%clk 0:01:34.4]} 30. Qe2 {[%clk 0:00:44.3]} 30...
Qa1 {[%clk 0:01:31.3]} 31. Qe6+ {[%clk 0:00:37.4]} 31... Kh8 {[%clk 0:01:30.6]}
32. Re8 {[%clk 0:00:37.7]} 32... Rf5 {[%clk 0:01:28.2]} 33. Rf7 {[%clk
0:00:32.1]} 33... Rg8 {[%clk 0:01:22.5]} 34. Rxg8+ {[%clk 0:00:30.2]} 34... Kxg8
{[%clk 0:01:23.3]} 35. Qe8# {[%clk 0:00:30.3]} 1-0

[Event "*** Titled Tuesday Blitz"]
[Site "Chess.com"]
[Date "2020.11.03"]
[Round "2"]
[White "MattyDPerrine"]
[Black "DonBroca"]
[Result "1-0"]
[WhiteElo "2385"]
[BlackElo "2082"]
[TimeControl "180+1"]
[EndTime "10:17:17 PST"]
[Termination "MattyDPerrine won by resignation"]

1. e4 {[%clk 0:02:58.5]} 1... c5 {[%clk 0:02:59.8]} 2. Nf3 {[%clk 0:02:58.5]}
2... d6 {[%clk 0:03:00.2]} 3. Bb5+ {[%clk 0:02:59]} 3... Nd7 {[%clk 0:02:59.8]}
4. Ba4 {[%clk 0:02:59.1]} 4... Nf6 {[%clk 0:02:59.4]} 5. O-O {[%clk 0:02:59.6]}
5... g6 {[%clk 0:02:59.8]} 6. Re1 {[%clk 0:02:58.8]} 6... Bg7 {[%clk 0:03:00.3]}
7. c3 {[%clk 0:02:58.3]} 7... O-O {[%clk 0:03:00.5]} 8. d4 {[%clk 0:02:58.9]}
8... a6 {[%clk 0:02:58.3]} 9. Bb3 {[%clk 0:02:55.8]} 9... b5 {[%clk 0:02:56.6]}
10. e5 {[%clk 0:02:56.3]} 10... Ne8 {[%clk 0:02:47.1]} 11. e6 {[%clk 0:02:55.2]}
11... fxe6 {[%clk 0:02:43.2]} 12. Bxe6+ {[%clk 0:02:56.1]} 12... Kh8 {[%clk
0:02:40.9]} 13. Ng5 {[%clk 0:02:57]} 13... cxd4 {[%clk 0:02:14.3]} 14. cxd4
{[%clk 0:02:46.8]} 14... Ndf6 {[%clk 0:01:59]} 15. Nf7+ {[%clk 0:02:33.5]} 15...
Rxf7 {[%clk 0:01:53]} 16. Bxf7 {[%clk 0:02:34.4]} 16... Nc7 {[%clk 0:01:49.8]}
17. Bb3 {[%clk 0:02:20.2]} 17... Bb7 {[%clk 0:01:50]} 18. a3 {[%clk 0:02:19.3]}
18... Qd7 {[%clk 0:01:43.9]} 19. Nc3 {[%clk 0:02:19.1]} 19... Rf8 {[%clk
0:01:41.3]} 20. h3 {[%clk 0:02:00]} 20... Qf5 {[%clk 0:01:39.7]} 21. Qc2 {[%clk
0:01:22.5]} 21... Qh5 {[%clk 0:01:24.6]} 22. Rxe7 {[%clk 0:01:15.6]} 22... Nfe8
{[%clk 0:00:53.7]} 23. Be3 {[%clk 0:01:10.4]} 23... Bf6 {[%clk 0:00:38.6]} 24.
Rf7 {[%clk 0:01:05.8]} 24... Rxf7 {[%clk 0:00:35.1]} 25. Bxf7 {[%clk 0:01:06.7]}
25... Ng7 {[%clk 0:00:35.1]} 26. Ne4 {[%clk 0:01:03]} 26... Nce8 {[%clk
0:00:34.3]} 27. Nxf6 {[%clk 0:01:00.9]} 1-0

[Event "*** Titled Tuesday Blitz"]
[Site "Chess.com"]
[Date "2020.11.03"]
[Round "2"]
[White "Ermito2020"]
[Black "pavelalexandru07"]
[Result "1-0"]
[WhiteElo "2604"]
[BlackElo "2323"]
[TimeControl "180+1"]
[EndTime "10:17:21 PST"]
[Termination "Ermito2020 won by resignation"]

1. e4 {[%clk 0:03:00.9]} 1... c5 {[%clk 0:03:00]} 2. Nf3 {[%clk 0:03:01.4]} 2...
d6 {[%clk 0:03:00.2]} 3. d4 {[%clk 0:03:01.9]} 3... cxd4 {[%clk 0:03:00.6]} 4.
Nxd4 {[%clk 0:03:02.7]} 4... Nf6 {[%clk 0:03:01.1]} 5. Nc3 {[%clk 0:03:03.1]}
5... a6 {[%clk 0:03:01.6]} 6. Nb3 {[%clk 0:03:03.4]} 6... e5 {[%clk 0:02:49.1]}
7. Bg5 {[%clk 0:03:02.1]} 7... Be7 {[%clk 0:02:49.5]} 8. Bxf6 {[%clk 0:02:59.9]}
8... Bxf6 {[%clk 0:02:49.1]} 9. Qd3 {[%clk 0:02:58.8]} 9... Be7 {[%clk
0:02:43.3]} 10. O-O-O {[%clk 0:02:58]} 10... O-O {[%clk 0:02:34]} 11. Nd5 {[%clk
0:02:58.6]} 11... Bg5+ {[%clk 0:02:32.3]} 12. Kb1 {[%clk 0:02:59.2]} 12... Nd7
{[%clk 0:02:26.1]} 13. h4 {[%clk 0:02:58]} 13... Bf6 {[%clk 0:02:10.1]} 14. g4
{[%clk 0:02:56.8]} 14... Bxh4 {[%clk 0:01:34.7]} 15. Qh3 {[%clk 0:02:55.7]}
15... g5 {[%clk 0:01:35.1]} 16. Ne3 {[%clk 0:02:55.6]} 16... Nf6 {[%clk
0:01:34.8]} 17. f3 {[%clk 0:02:49.1]} 17... h5 {[%clk 0:00:58.1]} 18. Bd3 {[%clk
0:02:22.4]} 18... Kg7 {[%clk 0:00:40.7]} 19. Qg2 {[%clk 0:02:13]} 19... Rh8
{[%clk 0:00:26.4]} 20. Bc4 {[%clk 0:01:53.8]} 20... Be6 {[%clk 0:00:22.8]} 21.
Bxe6 {[%clk 0:01:17.6]} 21... fxe6 {[%clk 0:00:22.6]} 22. gxh5 {[%clk
0:01:18.5]} 22... Rxh5 {[%clk 0:00:19.9]} 23. Rxh4 {[%clk 0:01:17.3]} 1-0

[Event "*** Titled Tuesday Blitz"]
[Site "Chess.com"]
[Date "2020.11.03"]
[Round "2"]
[White "zurzan"]
[Black "ajdemipopushi"]
[Result "0-1"]
[WhiteElo "2060"]
[BlackElo "2379"]
[TimeControl "180+1"]
[EndTime "10:17:23 PST"]
[Termination "ajdemipopushi won by resignation"]

1. f4 {[%clk 0:03:00.9]} 1... c5 {[%clk 0:02:59.4]} 2. Nf3 {[%clk 0:03:00.3]}
2... g6 {[%clk 0:02:59.9]} 3. g3 {[%clk 0:03:00.6]} 3... Bg7 {[%clk 0:03:00.1]}
4. Bg2 {[%clk 0:03:01.5]} 4... Nc6 {[%clk 0:03:00.5]} 5. O-O {[%clk 0:03:02.4]}
5... e6 {[%clk 0:03:00.6]} 6. d3 {[%clk 0:03:03.3]} 6... Nge7 {[%clk 0:03:00.3]}
7. c3 {[%clk 0:03:04.2]} 7... O-O {[%clk 0:02:57.9]} 8. e4 {[%clk 0:03:04.2]}
8... b6 {[%clk 0:02:51.8]} 9. Qe1 {[%clk 0:02:55.9]} 9... Ba6 {[%clk 0:02:49]}
10. Qe3 {[%clk 0:02:49.4]} 10... d5 {[%clk 0:02:48.4]} 11. e5 {[%clk 0:02:48.7]}
11... d4 {[%clk 0:02:37.4]} 12. Qe2 {[%clk 0:02:36.8]} 12... dxc3 {[%clk
0:02:36]} 13. Rd1 {[%clk 0:02:32.3]} 13... cxb2 {[%clk 0:02:19.5]} 14. Bxb2
{[%clk 0:02:31.8]} 14... Nf5 {[%clk 0:02:15.7]} 15. Na3 {[%clk 0:02:23.2]} 15...
Nfd4 {[%clk 0:02:08]} 16. Nxd4 {[%clk 0:02:10.1]} 16... Nxd4 {[%clk 0:02:07.8]}
17. Qf2 {[%clk 0:01:59.8]} 17... Rc8 {[%clk 0:01:54.7]} 18. Nc4 {[%clk
0:01:59.3]} 18... Rc7 {[%clk 0:01:36.8]} 19. Rac1 {[%clk 0:01:56.9]} 19... Rd7
{[%clk 0:01:31.9]} 20. Nd6 {[%clk 0:01:46.5]} 20... Nb5 {[%clk 0:01:27.1]} 21.
Bc6 {[%clk 0:01:41.3]} 21... Nxd6 {[%clk 0:01:24.1]} 22. Bxd7 {[%clk 0:01:40.6]}
22... Qxd7 {[%clk 0:01:17.3]} 23. exd6 {[%clk 0:01:40.3]} 23... Qxd6 {[%clk
0:01:01.6]} 24. Bxg7 {[%clk 0:01:38.8]} 24... Kxg7 {[%clk 0:01:01.5]} 25. Qb2+
{[%clk 0:01:37]} 25... Kg8 {[%clk 0:01:00.9]} 26. Qe5 {[%clk 0:01:35.9]} 26...
Qc6 {[%clk 0:00:55.2]} 27. d4 {[%clk 0:01:33.5]} 27... Bb7 {[%clk 0:00:55]} 28.
d5 {[%clk 0:01:31.9]} 28... exd5 {[%clk 0:00:53.5]} 29. Kg2 {[%clk 0:01:12.6]}
29... Re8 {[%clk 0:00:51.5]} 30. Qb2 {[%clk 0:01:08.1]} 30... d4+ {[%clk
0:00:50]} 31. Kh3 {[%clk 0:01:06.8]} 31... Bc8+ {[%clk 0:00:46.6]} 32. g4 {[%clk
0:01:06.2]} 32... Qf3+ {[%clk 0:00:45.9]} 0-1

[Event "*** Titled Tuesday Blitz"]
[Site "Chess.com"]
[Date "2020.11.03"]
[Round "2"]
[White "731291"]
[Black "Azerichess"]
[Result "0-1"]
[WhiteElo "2622"]
[BlackElo "3014"]
[TimeControl "180+1"]
[EndTime "10:17:24 PST"]
[Termination "Azerichess won on time"]

1. e4 {[%clk 0:03:00.9]} 1... c6 {[%clk 0:02:56.8]} 2. Nc3 {[%clk 0:03:00.4]}
2... d5 {[%clk 0:02:57.1]} 3. Nf3 {[%clk 0:03:00.7]} 3... Bg4 {[%clk 0:02:57.5]}
4. h3 {[%clk 0:03:00.6]} 4... Bxf3 {[%clk 0:02:57.9]} 5. Qxf3 {[%clk 0:03:01.5]}
5... e6 {[%clk 0:02:58.3]} 6. d4 {[%clk 0:03:01]} 6... dxe4 {[%clk 0:02:57.6]}
7. Qxe4 {[%clk 0:03:01.9]} 7... Nf6 {[%clk 0:02:57.1]} 8. Qd3 {[%clk 0:03:02.5]}
8... Qa5 {[%clk 0:02:54.8]} 9. Bd2 {[%clk 0:02:54.9]} 9... Na6 {[%clk
0:02:53.5]} 10. Ne4 {[%clk 0:01:55.8]} 10... Nb4 {[%clk 0:02:47.4]} 11. Nxf6+
{[%clk 0:01:55.4]} 11... gxf6 {[%clk 0:02:47.2]} 12. Qb3 {[%clk 0:01:36.8]}
12... Qd5 {[%clk 0:02:46.7]} 13. Bxb4 {[%clk 0:01:28.2]} 13... Qxb3 {[%clk
0:02:44.7]} 14. axb3 {[%clk 0:01:29.1]} 14... Bxb4+ {[%clk 0:02:44.6]} 15. c3
{[%clk 0:01:30]} 15... Bd6 {[%clk 0:02:44.3]} 16. g3 {[%clk 0:01:26]} 16... f5
{[%clk 0:02:42.5]} 17. Bg2 {[%clk 0:01:19.6]} 17... h5 {[%clk 0:02:41]} 18. b4
{[%clk 0:01:16.4]} 18... h4 {[%clk 0:02:29.6]} 19. gxh4 {[%clk 0:00:55.3]} 19...
Ke7 {[%clk 0:02:21.1]} 20. b5 {[%clk 0:00:52.2]} 20... cxb5 {[%clk 0:02:20.5]}
21. Bxb7 {[%clk 0:00:52.2]} 21... Rab8 {[%clk 0:02:16.7]} 22. Rxa7 {[%clk
0:00:50.5]} 22... Rxh4 {[%clk 0:02:14.6]} 23. Ke2 {[%clk 0:00:40.6]} 23... b4
{[%clk 0:02:10.7]} 24. Rg1 {[%clk 0:00:34]} 24... Kf6 {[%clk 0:02:07.6]} 25. Rh1
{[%clk 0:00:13.3]} 25... Be7 {[%clk 0:01:47.9]} 26. Bg2 {[%clk 0:00:11]} 26...
bxc3 {[%clk 0:01:47.1]} 27. bxc3 {[%clk 0:00:11.9]} 27... Rb2+ {[%clk 0:01:47]}
28. Kf3 {[%clk 0:00:09.1]} 28... Bd6 {[%clk 0:01:46.4]} 29. Rha1 {[%clk
0:00:06.7]} 29... Rf4+ {[%clk 0:01:46.1]} 30. Ke3 {[%clk 0:00:06.7]} 30... Rfxf2
{[%clk 0:01:46.5]} 31. Bc6 {[%clk 0:00:05.9]} 31... Rbd2 {[%clk 0:01:43.9]} 0-1